bitfinex-derivatives/quotes_BTCF0:USTF0_20240903
["timestamp","ask_amount","ask_price","bid_price","bid_amount"]
[1725323233251,0.0004,59173.0,59172.0,0.22918547]
[1725323233455,0.0094,59173.0,59172.0,0.23018547]
[1725323235548,0.0104,59173.0,59172.0,0.23018547]
[1725323235952,0.0004,59173.0,59172.0,0.22918547]
[1725323236154,0.0104,59173.0,59172.0,0.23018547]
[1725323238165,0.0004,59173.0,59172.0,0.15918547]
[1725323238360,0.0104,59173.0,59172.0,0.16018547]
[1725323239949,0.0004,59173.0,59172.0,0.15918547]
[1725323240164,0.0104,59173.0,59172.0,0.16018547]
[1725323246660,0.0104,59173.0,59172.0,0.52098547]
[1725323249769,0.0104,59173.0,59172.0,0.43098547]
[1725323250866,0.078001,59173.0,59172.0,0.43098547]
[1725323251785,0.078001,59173.0,59172.0,0.42965547]
[1725323253079,0.078001,59173.0,59172.0,0.06885547]
[1725323253269,0.078001,59173.0,59172.0,0.42965547]
[1725323253773,0.078001,59173.0,59172.0,0.06885547]
[1725323253978,0.078001,59173.0,59172.0,0.42965547]
[1725323255177,0.0104,59173.0,59172.0,0.42965547]
[1725323257682,0.0104,59173.0,59172.0,0.69751904]
[1725323261075,0.0104,59173.0,59172.0,0.78197131]
[1725323261282,0.0104,59173.0,59172.0,0.69751904]
[1725323261477,0.0104,59173.0,59172.0,0.78196719]
[1725323261681,0.0034,59173.0,59172.0,0.78096719]
[1725323262287,0.0064,59173.0,59172.0,0.78196719]
[1725323262990,0.0074,59173.0,59172.0,0.78196719]
[1725323265788,0.0074,59173.0,59172.0,0.78329719]
[1725323266683,0.0074,59173.0,59172.0,0.69884904]
[1725323267882,0.0074,59173.0,59172.0,0.69884196]
[1725323271481,0.0074,59173.0,59172.0,0.69784196]
[1725323271685,0.0074,59173.0,59172.0,0.69884196]
[1725323272187,0.0004,59173.0,59172.0,0.69784196]
[1725323272387,0.0074,59173.0,59172.0,0.69884196]
[1725323272781,0.0074,59173.0,59172.0,0.7832387]
[1725323273982,0.0074,59173.0,59172.0,0.69884196]
[1725323274388,0.0074,59173.0,59172.0,0.78323645]
[1725323275789,0.0074,59173.0,59172.0,0.69884196]
[1725323276588,0.0074,59173.0,59172.0,0.78323685]
[1725323276788,0.0074,59173.0,59172.0,0.69884196]
[1725323276995,0.0074,59173.0,59172.0,0.78323661]
[1725323277888,0.0074,59173.0,59172.0,0.78323926]
[1725323278995,0.0074,59173.0,59172.0,0.78324155]
[1725323279297,0.0074,59173.0,59172.0,0.73794051]
[1725323280691,0.0074,59173.0,59172.0,0.43098547]
[1725323280888,0.1503,59173.0,59172.0,0.43098547]
[1725323281585,0.217901,59173.0,59172.0,0.43098547]
[1725323281792,0.217901,59173.0,59172.0,0.4985275]
[1725323282087,0.217901,59173.0,59172.0,0.43092342]
[1725323284390,0.217901,59173.0,59172.0,0.00258347]
[1725323284792,0.22148777,59173.0,59172.0,0.00258347]
[1725323285402,0.067604,59171.0,59170.0,0.05066826]
[1725323285602,0.518404,59171.0,59167.0,0.05066826]
[1725323285901,0.518404,59171.0,59157.0,0.09]
[1725323285902,0.067609,59166.0,59165.0,0.05066826]
[1725323286203,0.067612,59164.0,59163.0,0.05066826]
[1725323286393,0.068012,59164.0,59163.0,0.05066826]
[1725323286590,0.067612,59164.0,59163.0,0.05066826]
[1725323287187,0.09,59166.0,59158.0,0.00025347]
[1725323287188,0.067613,59163.0,59162.0,0.05066826]
[1725323287499,0.116213,59163.0,59162.0,0.05066826]
[1725323287701,0.067614,59162.0,59161.0,0.05066826]
[1725323287898,0.116714,59162.0,59161.0,0.05066826]
[1725323288099,0.116714,59162.0,59160.0,0.14066826]
[1725323288100,0.116314,59162.0,59160.0,0.14066826]
[1725323288295,0.068015,59161.0,59160.0,0.14066826]
[1725323288498,0.068015,59161.0,59160.0,0.09]
[1725323288796,0.064015,59161.0,59160.0,0.09]
[1725323289295,0.068015,59161.0,59160.0,0.05360191]
[1725323289501,0.068015,59161.0,59160.0,0.003]
[1725323290797,0.068015,59161.0,59158.0,0.05085538]
[1725323290798,0.064617,59159.0,59158.0,0.05085538]
[1725323291192,0.065017,59159.0,59158.0,0.05085538]
[1725323292391,0.065017,59159.0,59158.0,0.05585538]
[1725323292791,0.0004,59159.0,59158.0,0.07287147]
[1725323294098,0.0004,59163.0,59158.0,0.07287147]
[1725323294099,0.0004,59163.0,59162.0,0.067614]
[1725323294300,0.0004,59163.0,59162.0,0.518814]
[1725323294494,0.0004,59163.0,59162.0,0.58621102]
[1725323294805,0.0004,59163.0,59162.0,0.70621102]
[1725323295193,0.00025347,59169.0,59168.0,0.067607]
[1725323295396,0.00025347,59169.0,59168.0,0.428407]
[1725323295699,0.00025347,59169.0,59168.0,0.428807]
[1725323296802,0.00025347,59169.0,59168.0,0.476307]
[1725323297591,0.00725347,59169.0,59168.0,0.477307]
[1725323299997,0.00725347,59169.0,59168.0,0.48102855]
[1725323300408,0.00725347,59169.0,59168.0,0.43352855]
[1725323300602,0.00725347,59169.0,59168.0,0.429807]
[1725323303106,0.00725347,59169.0,59168.0,0.48034953]
[1725323303413,0.00725347,59169.0,59168.0,0.429807]
[1725323303794,0.00725347,59169.0,59168.0,0.549807]
[1725323307299,0.00725347,59169.0,59168.0,0.429807]
[1725323310705,0.00725347,59169.0,59168.0,0.069007]
[1725323310902,0.00725347,59169.0,59168.0,0.429807]
[1725323314707,0.00725347,59169.0,59168.0,0.431137]
[1725323315509,0.00725347,59169.0,59168.0,0.478237]
[1725323318716,0.00725347,59169.0,59168.0,0.58859393]
[1725323320310,0.00725347,59169.0,59168.0,0.521137]
[1725323320621,0.00725347,59169.0,59168.0,0.58862535]
[1725323321710,0.00725347,59169.0,59168.0,0.521137]
[1725323321910,0.07485947,59169.0,59168.0,0.58864639]
[1725323322111,0.07485947,59169.0,59168.0,0.521137]
[1725323326714,0.07842734,59169.0,59168.0,0.521137]
[1725323327314,0.07842734,59169.0,59168.0,0.00273]
[1725323327725,0.07842734,59169.0,59168.0,0.09273]
[1725323329424,0.07485947,59169.0,59168.0,0.09273]
[1725323330817,0.07485947,59169.0,59168.0,0.160337]
[1725323332425,0.00725347,59169.0,59168.0,0.160337]
[1725323332815,0.00725347,59169.0,59168.0,0.37350462]
[1725323333023,0.00725347,59169.0,59168.0,0.160337]
[1725323338017,0.00725347,59169.0,59168.0,0.24473165]
[1725323338218,0.00725347,59169.0,59168.0,0.160337]
[1725323340422,0.07485947,59169.0,59168.0,0.070337]
[1725323340617,0.07485947,59169.0,59168.0,0.07030431]
[1725323340618,1.01030547,59169.0,59168.0,0.07030431]
[1725323340923,1.01030547,59169.0,59168.0,0.00273]
[1725323340924,0.94269947,59169.0,59168.0,0.00273]
[1725323341123,0.94269947,59169.0,59168.0,0.05342174]
[1725323341326,0.43565947,59169.0,59168.0,0.05342174]
[1725323342427,0.43565947,59169.0,59168.0,0.00273]
[1725323343424,0.36805347,59169.0,59168.0,0.12102874]
[1725323343634,0.36805347,59169.0,59168.0,0.070337]
[1725323345630,0.00725347,59169.0,59168.0,0.49871131]
[1725323346129,0.00725347,59169.0,59168.0,0.431137]
[1725323346534,0.00725347,59169.0,59168.0,0.49869622]
[1725323347043,0.00725347,59169.0,59168.0,0.13789622]
[1725323347227,0.00725347,59169.0,59168.0,0.070337]
[1725323347623,0.00725347,59169.0,59168.0,0.190337]
[1725323347820,0.07485947,59169.0,59168.0,0.190337]
[1725323348732,0.07485947,59169.0,59168.0,0.1214]
[1725323348936,0.07485947,59169.0,59168.0,0.0014]
[1725323350132,0.07485947,59169.0,59168.0,0.05207646]
[1725323352835,0.07485947,59169.0,59168.0,0.0014]
[1725323355635,0.14246547,59169.0,59168.0,0.0014]
[1725323357037,0.14246547,59169.0,59163.0,0.05067646]
[1725323357038,0.067612,59164.0,59163.0,0.05067646]
[1725323357336,0.067615,59161.0,59160.0,0.05067646]
[1725323357540,0.067616,59160.0,59159.0,0.05067646]
[1725323357725,0.166516,59160.0,59159.0,0.05067646]
[1725323358038,0.166116,59160.0,59159.0,0.05067646]
[1725323358235,0.0985,59160.0,59158.0,0.05092993]
[1725323358439,0.067617,59159.0,59158.0,0.00025347]
[1725323358740,0.068017,59159.0,59158.0,0.14089869]
[1725323359044,0.064017,59159.0,59158.0,0.14089869]
[1725323360943,0.064017,59159.0,59158.0,0.09025347]
[1725323361237,0.064017,59159.0,59158.0,0.09325347]
[1725323363040,0.06771732,59159.0,59158.0,0.09325347]
[1725323363740,0.06771732,59159.0,59158.0,0.14389869]
[1725323364937,0.06771732,59159.0,59158.0,0.09325347]
[1725323367834,0.06771732,59159.0,59158.0,0.45405347]
[1725323368435,0.06771732,59159.0,59158.0,0.52161269]
[1725323368631,0.06771732,59159.0,59158.0,0.45405347]
[1725323368843,0.06771732,59159.0,59158.0,0.52167147]
[1725323370525,0.06771732,59159.0,59158.0,0.58923069]
[1725323372034,0.06771732,59159.0,59158.0,0.22843069]
[1725323372731,0.064017,59159.0,59158.0,0.22843069]
[1725323372937,0.0004,59159.0,59158.0,0.22843069]
[1725323373438,0.0004,59159.0,59158.0,0.52167147]
[1725323373637,0.0004,59159.0,59158.0,0.16459246]
[1725323380349,0.0004,59159.0,59158.0,0.16087147]
[1725323391157,0.0004,59159.0,59158.0,0.3740626]
[1725323391346,0.0004,59159.0,59158.0,0.28966795]
[1725323392857,0.0004,59159.0,59158.0,0.28966173]
[1725323393856,0.0004,59161.0,59160.0,0.067616]
[1725323394050,0.0004,59161.0,59160.0,0.74860907]
[1725323394245,0.0004,59161.0,59160.0,0.74856885]
[1725323395062,0.0039,59168.0,59167.0,0.067608]
[1725323395364,0.00366071,59172.0,59167.0,0.4508]
[1725323395658,0.00366071,59172.0,59168.0,0.06755746]
[1725323396864,0.00125347,59169.0,59168.0,0.13516446]
[1725323397254,0.00125347,59169.0,59168.0,0.067607]
[1725323397454,0.00125347,59169.0,59168.0,0.13616446]
[1725323397957,0.00825347,59169.0,59168.0,0.49696446]
[1725323398352,0.00825347,59169.0,59168.0,0.429407]
[1725323399560,0.00825347,59169.0,59168.0,0.068607]
[1725323401972,0.07585947,59169.0,59168.0,0.068607]
[1725323402862,0.07585947,59169.0,59168.0,0.001]
[1725323410571,0.07585947,59169.0,59168.0,0.068607]
[1725323411079,0.07585947,59169.0,59168.0,0.069937]
[1725323411274,0.12772974,59169.0,59168.0,0.069937]
[1725323411670,0.18833974,59169.0,59168.0,0.069937]
[1725323411971,0.12772974,59169.0,59168.0,0.069937]
[1725323412371,0.18833974,59169.0,59168.0,0.069937]
[1725323412678,0.12772974,59169.0,59168.0,0.069937]
[1725323412884,0.18833974,59169.0,59168.0,0.069937]
[1725323413076,0.12772974,59169.0,59168.0,0.069937]
[1725323413265,0.18833974,59169.0,59168.0,0.069937]
[1725323414866,0.40715554,59169.0,59168.0,0.069937]
[1725323416882,0.18833974,59169.0,59168.0,0.069937]
[1725323418279,0.07585947,59169.0,59168.0,0.069937]
[1725323419374,0.07585947,59169.0,59168.0,0.00233]
[1725323420684,0.07585947,59169.0,59168.0,0.05296902]
[1725323421477,0.07585947,59169.0,59168.0,0.05303057]
[1725323422075,0.07585947,59169.0,59168.0,0.00233]
[1725323426183,0.18834289,59169.0,59168.0,0.00233]
[1725323427877,0.18834294,59169.0,59168.0,0.00233]
[1725323429991,0.18834294,59169.0,59168.0,0.069937]
[1725323430885,0.4076449,59169.0,59168.0,0.069937]
[1725323431086,0.4076449,59169.0,59168.0,0.116037]
[1725323431087,0.3400389,59169.0,59168.0,0.116037]
[1725323431806,0.12073694,59169.0,59168.0,0.116037]
[1725323433295,0.00825347,59169.0,59168.0,0.116037]
[1725323434291,0.00825347,59169.0,59168.0,0.476837]
[1725323434502,0.00825347,59169.0,59168.0,0.116037]
[1725323434689,0.00825347,59169.0,59168.0,0.476837]
[1725323440287,0.00825347,59169.0,59168.0,0.544444]
[1725323440486,0.00825347,59169.0,59168.0,0.476837]
[1725323440692,0.00825347,59169.0,59168.0,1.103877]
[1725323440995,0.00825347,59169.0,59168.0,0.596837]
[1725323441492,0.00825347,59169.0,59168.0,0.64749291]
[1725323442200,0.00825347,59169.0,59168.0,1.00829291]
[1725323442501,0.00825347,59169.0,59168.0,0.957637]
[1725323443098,0.00825347,59169.0,59168.0,1.00829291]
[1725323443496,0.00825347,59169.0,59168.0,0.957637]
[1725323444298,0.00825347,59169.0,59168.0,0.956637]
[1725323444610,0.00225347,59169.0,59168.0,0.956637]
[1725323444803,0.00225347,59169.0,59168.0,0.955307]
[1725323448302,0.11471485,59169.0,59168.0,0.955307]
[1725323450192,0.33401681,59169.0,59168.0,0.955307]
[1725323452195,0.11471485,59169.0,59168.0,0.955307]
[1725323452691,0.11471414,59169.0,59168.0,0.955307]
[1725323455205,0.11471414,59169.0,59168.0,1.022914]
[1725323456311,0.00225347,59169.0,59168.0,0.955307]
[1725323456608,0.00225347,59169.0,59168.0,1.022914]
[1725323457013,0.00225347,59169.0,59168.0,0.955307]
[1725323457410,0.00125347,59169.0,59168.0,0.955307]
[1725323457710,0.00125347,59169.0,59168.0,1.022914]
[1725323458014,0.00125347,59169.0,59168.0,0.955307]
[1725323458209,0.00125347,59169.0,59168.0,0.909207]
[1725323459005,0.00125347,59169.0,59168.0,0.910537]
[1725323460205,0.00125347,59169.0,59168.0,0.188937]
[1725323460409,0.00125347,59169.0,59168.0,0.910537]
[1725323462411,0.00125347,59169.0,59168.0,0.9780987]
[1725323463321,0.05311497,59169.0,59168.0,0.910537]
[1725323465724,0.05311497,59169.0,59168.0,0.790537]
[1725323466117,0.05311497,59169.0,59168.0,0.910537]
[1725323468828,0.05311497,59169.0,59168.0,2.085184]
[1725323469035,0.0497,59180.0,59174.0,0.0676]
[1725323469329,0.0497,59180.0,59179.0,0.067594]
[1725323469633,0.0497,59180.0,59179.0,0.518794]
[1725323469634,0.11029976,59180.0,59179.0,0.518794]
[1725323470535,0.12329976,59180.0,59179.0,0.519794]
[1725323471423,0.0627,59180.0,59179.0,0.519794]
[1725323472023,0.0627,59180.0,59179.0,0.520794]
[1725323473337,0.00025227,59185.0,59179.0,0.937714]
[1725323473541,0.046,59198.0,59184.0,0.4512]
[1725323473731,0.046,59198.0,59197.0,0.789174]
[1725323473934,0.046,59198.0,59197.0,0.909174]
[1725323474630,0.058,59198.0,59197.0,0.95972096]
[1725323474934,0.058,59198.0,59197.0,0.999174]
[1725323475332,0.06,59198.0,59197.0,1.000174]
[1725323475640,0.014,59198.0,59197.0,1.000174]
[1725323476139,0.014,59198.0,59197.0,1.001174]
[1725323476344,0.014,59198.0,59197.0,0.91474783]
[1725323476530,0.014,59198.0,59197.0,1.00474783]
[1725323477234,0.014,59198.0,59197.0,1.00554783]
[1725323478042,1.278333,59198.0,59197.0,0.0028]
[1725323478236,0.067578,59193.0,59192.0,0.00025347]
[1725323478546,1.7541324,59193.0,59192.0,0.00025347]
[1725323478743,1.1541324,59193.0,59192.0,0.00025347]
[1725323479533,1.1541324,59193.0,59192.0,0.00225347]
[1725323480741,1.7541324,59193.0,59192.0,0.00225347]
[1725323481133,0.067588,59185.0,59184.0,0.0048]
[1725323481439,0.2875024,59185.0,59184.0,0.0048]
[1725323482430,0.2865024,59185.0,59184.0,0.0048]
[1725323482827,0.2925024,59185.0,59184.0,0.0058]
[1725323483241,0.2945024,59185.0,59184.0,0.0068]
[1725323486540,0.164588,59185.0,59184.0,0.0068]
[1725323489646,0.074588,59185.0,59184.0,0.0068]
[1725323492544,0.008,59185.0,59184.0,0.074389]
[1725323498943,0.008,59185.0,59184.0,0.194389]
[1725323500750,0.008,59185.0,59184.0,0.074389]
[1725323503152,0.008,59185.0,59184.0,0.194389]
[1725323506258,0.008,59185.0,59184.0,0.195719]
[1725323509964,0.00025347,59190.0,59184.0,0.72813]
[1725323510175,0.0008,59198.0,59191.0,0.067581]
[1725323510464,0.0008,59198.0,59197.0,0.588774]
[1725323510764,0.0008,59198.0,59197.0,0.708774]
[1725323511654,0.0008,59198.0,59197.0,0.75932026]
[1725323511958,0.0058,59198.0,59197.0,0.75932026]
[1725323512559,0.0068,59198.0,59197.0,0.710774]
[1725323513966,0.0068,59198.0,59197.0,0.7143963]
[1725323520460,0.074373,59198.0,59197.0,0.6432]
[1725323520966,0.13494555,59198.0,59197.0,0.6432]
[1725323521265,0.13494555,59198.0,59197.0,0.5232]
[1725323521859,0.074373,59198.0,59197.0,0.5232]
[1725323522268,0.13494555,59198.0,59197.0,0.5232]
[1725323523462,0.074373,59198.0,59197.0,0.5232]
[1725323524377,0.0068,59198.0,59197.0,0.590774]
[1725323524677,0.0068,59198.0,59197.0,0.684174]
[1725323527873,0.0068,59198.0,59197.0,0.729574]
[1725323528374,0.0046,59215.0,59197.0,1.76876]
[1725323528560,0.11515,59218.0,59211.0,0.5208]
[1725323528761,0.11515,59218.0,59215.0,0.16]
[1725323529272,0.11515,59218.0,59211.0,0.428358]
[1725323529273,0.0476,59218.0,59211.0,0.5208]
[1725323529777,0.067553,59215.0,59211.0,0.5218]
[1725323529979,0.0526,59218.0,59215.0,0.16]
[1725323530180,0.12015,59218.0,59212.0,0.067557]
[1725323530475,0.12015,59218.0,59214.0,0.16]
[1725323530774,0.12015,59218.0,59214.0,0.1355]
[1725323531168,0.11515,59218.0,59214.0,0.1355]
[1725323531375,0.11515,59218.0,59215.0,0.001]
[1725323531874,0.11515,59218.0,59214.0,0.204054]
[1725323532174,0.11515,59218.0,59214.0,0.205054]
[1725323532472,0.11515,59218.0,59215.0,0.001]
[1725323533974,0.11515,59218.0,59215.0,0.068553]
[1725323534179,0.11515,59218.0,59215.0,0.067553]
[1725323534377,0.11515,59218.0,59215.0,0.068553]
[1725323534875,0.11515,59218.0,59215.0,0.069553]
[1725323535177,0.11515,59218.0,59215.0,0.068553]
[1725323535579,0.11515,59218.0,59215.0,0.069553]
[1725323535964,0.11515,59218.0,59217.0,0.0008]
[1725323537781,0.11515,59218.0,59217.0,0.0018]
[1725323538276,0.11515,59218.0,59217.0,0.0028]
[1725323538463,0.067553,59216.0,59214.0,0.00855756]
[1725323538665,0.067553,59216.0,59212.0,0.06228357]
[1725323538869,0.12643233,59218.0,59216.0,0.067551]
[1725323539066,0.12643233,59218.0,59216.0,0.428351]
[1725323539265,0.07883233,59218.0,59217.0,0.068551]
[1725323539777,0.0008,59218.0,59217.0,0.069551]
[1725323539981,0.0018,59218.0,59217.0,0.069551]
[1725323540371,0.13164858,59218.0,59217.0,0.069551]
[1725323540574,0.13064858,59218.0,59217.0,0.069551]
[1725323540778,0.13164858,59218.0,59217.0,0.068551]
[1725323541477,0.13164858,59218.0,59217.0,0.069551]
[1725323541478,0.13264858,59218.0,59217.0,0.069551]
[1725323542382,0.13264858,59218.0,59217.0,0.189551]
[1725323543073,0.13164858,59218.0,59217.0,0.188551]
[1725323543272,0.13264858,59218.0,59217.0,0.189551]
[1725323543891,0.13264858,59218.0,59217.0,0.189351]
[1725323543892,0.13164858,59218.0,59217.0,0.189351]
[1725323544075,0.13264858,59218.0,59217.0,0.190351]
[1725323544276,0.13264858,59218.0,59217.0,0.189351]
[1725323544781,0.13264858,59218.0,59217.0,0.19298888]
[1725323544982,0.13264858,59218.0,59217.0,0.19398888]
[1725323545185,0.13264858,59218.0,59217.0,0.07398888]
[1725323545979,0.0028,59218.0,59217.0,0.07398888]
[1725323546775,0.0018,59218.0,59217.0,0.07298888]
[1725323547079,0.0028,59218.0,59217.0,0.070351]
[1725323547679,0.0018,59218.0,59217.0,0.069351]
[1725323547879,0.0028,59218.0,59217.0,0.070351]
[1725323549777,0.0018,59218.0,59217.0,0.069351]
[1725323550094,1.53675,59218.0,59217.0,0.0018]
[1725323550385,0.43115,59218.0,59217.0,0.1628]
[1725323551580,0.43015,59218.0,59217.0,0.1618]
[1725323551778,0.43015,59218.0,59217.0,0.1628]
[1725323551779,0.43480396,59218.0,59217.0,0.1628]
[1725323551986,0.16720396,59218.0,59217.0,0.1628]
[1725323552498,0.16620396,59218.0,59217.0,0.0018]
[1725323552687,0.16720396,59218.0,59217.0,0.0028]
[1725323553790,0.16520396,59218.0,59217.0,0.0008]
[1725323553997,0.22776653,59218.0,59217.0,0.0028]
[1725323554291,0.22776653,59218.0,59217.0,0.00413]
[1725323555594,0.22776653,59218.0,59217.0,0.16413]
[1725323556686,0.22676653,59218.0,59217.0,0.16313]
[1725323556886,0.22776653,59218.0,59217.0,0.16413]
[1725323557895,0.22776653,59218.0,59217.0,0.00413]
[1725323558094,1.40191653,59218.0,59217.0,0.00413]
[1725323558495,1.76271653,59218.0,59217.0,0.00413]
[1725323559883,1.76171653,59218.0,59217.0,0.00313]
[1725323560092,1.76271653,59218.0,59217.0,0.00413]
[1725323560500,1.85446199,59218.0,59209.0,0.00025347]
[1725323560697,0.495918,59210.0,59209.0,0.00025347]
[1725323561085,1.602598,59210.0,59209.0,0.00025347]
[1725323561290,1.601598,59210.0,59209.0,0.00025347]
[1725323562294,1.001598,59210.0,59209.0,0.00025347]
[1725323562493,1.000598,59210.0,59209.0,0.00025347]
[1725323562893,1.003598,59210.0,59209.0,0.00125347]
[1725323563093,0.496918,59210.0,59209.0,0.00125347]
[1725323563297,0.498918,59210.0,59209.0,0.00225347]
[1725323563607,1.605598,59210.0,59209.0,0.00225347]
[1725323564101,1.607598,59210.0,59209.0,0.00225347]
[1725323566690,1.606598,59210.0,59209.0,0.00225347]
[1725323567107,1.607598,59210.0,59209.0,0.00225347]
[1725323568498,1.61125946,59210.0,59209.0,0.00225347]
[1725323568893,1.67083491,59210.0,59209.0,0.00225347]
[1725323569293,1.7383959,59210.0,59209.0,4.7e-07]
[1725323569593,0.067578,59193.0,59186.0,0.0039]
[1725323569799,0.494956,59193.0,59186.0,0.0039]
[1725323570000,0.55553344,59193.0,59185.0,0.2065]
[1725323570204,0.55553344,59193.0,59187.0,0.00025347]
[1725323570205,0.55453344,59193.0,59187.0,0.00025347]
[1725323570999,0.55753344,59193.0,59187.0,0.00025347]
[1725323571600,0.55653344,59193.0,59187.0,0.00025347]
[1725323572303,0.48895544,59193.0,59190.0,0.16]
[1725323572511,0.432378,59193.0,59192.0,0.222003]
[1725323573308,0.007,59193.0,59192.0,0.650383]
[1725323573705,0.01,59193.0,59192.0,0.651383]
[1725323574914,0.006,59193.0,59192.0,0.289583]
[1725323575214,0.011,59193.0,59192.0,0.290583]
[1725323575510,0.011,59193.0,59192.0,0.651383]
[1725323575710,0.011,59193.0,59192.0,0.650383]
[1725323575711,0.006,59193.0,59192.0,0.650383]
[1725323575902,0.005,59193.0,59192.0,0.650383]
[1725323576098,0.00025347,59198.0,59197.0,0.067574]
[1725323576308,0.00025347,59198.0,59197.0,0.588374]
[1725323576613,0.00025347,59198.0,59197.0,0.589174]
[1725323577302,0.00025347,59198.0,59197.0,0.590174]
[1725323577303,0.00525347,59198.0,59197.0,0.590174]
[1725323578219,0.00625347,59198.0,59197.0,0.64162713]
[1725323578514,0.00625347,59198.0,59197.0,0.591174]
[1725323578703,0.00625347,59198.0,59197.0,0.64166386]
[1725323579120,0.00725347,59198.0,59197.0,0.64166386]
[1725323579508,0.00725347,59198.0,59197.0,0.591174]
[1725323580107,0.00525347,59198.0,59197.0,0.591174]
[1725323581610,0.00525347,59198.0,59197.0,0.65866607]
[1725323581915,0.00325347,59198.0,59197.0,0.65766607]
[1725323582215,0.00325347,59198.0,59197.0,0.66239206]
[1725323582216,0.00525347,59198.0,59197.0,0.66239206]
[1725323582510,0.00525347,59198.0,59197.0,0.59489999]
[1725323582707,0.00325347,59198.0,59197.0,0.59389999]
[1725323582907,0.00525347,59198.0,59197.0,0.59489999]
[1725323583108,0.00225347,59198.0,59197.0,0.59389999]
[1725323583304,0.00225347,59198.0,59197.0,0.59489999]
[1725323583305,0.00625347,59198.0,59197.0,0.59489999]
[1725323585227,0.07382647,59198.0,59197.0,0.3636]
[1725323586008,0.07382647,59198.0,59197.0,0.0028]
[1725323586317,0.07182647,59198.0,59197.0,0.0028]
[1725323587516,0.06782647,59198.0,59197.0,0.0018]
[1725323587717,0.06782647,59198.0,59197.0,0.1628]
[1725323587718,0.07182647,59198.0,59197.0,0.1628]
[1725323588122,0.07182647,59198.0,59197.0,0.1618]
[1725323588419,0.07282647,59198.0,59197.0,0.1628]
[1725323588918,0.07282647,59198.0,59197.0,0.230374]
[1725323591217,0.00525347,59198.0,59197.0,0.230374]
[1725323592223,0.00425347,59198.0,59197.0,0.229374]
[1725323592419,0.00525347,59198.0,59197.0,0.230374]
[1725323594219,0.001,59198.0,59197.0,0.229374]
[1725323594413,0.005,59198.0,59197.0,0.229374]
[1725323594914,0.06057758,59211.0,59207.0,0.067562]
[1725323595121,0.06057758,59211.0,59210.0,0.0004]
[1725323597132,0.06057758,59211.0,59210.0,0.0014]
[1725323597335,0.06057758,59211.0,59210.0,0.068959]
[1725323597522,0.165652,59217.0,59212.0,0.067557]
[1725323597713,0.165652,59217.0,59216.0,0.0004]
[1725323598125,0.16925569,59217.0,59216.0,0.0004]
[1725323599018,0.17025569,59217.0,59216.0,0.0014]
[1725323600829,0.17025569,59217.0,59216.0,0.0024]
[1725323601329,0.16925569,59217.0,59216.0,0.0014]
[1725323601524,0.17025569,59217.0,59216.0,0.0024]
[1725323605133,0.53105569,59217.0,59216.0,0.0024]
[1725323605830,0.17025569,59217.0,59216.0,0.0024]
[1725323606137,0.66092736,59217.0,59216.0,0.0024]
[1725323614135,0.53105569,59217.0,59216.0,0.0024]
[1725323615337,0.17025569,59217.0,59216.0,0.0024]
[1725323615632,0.53105569,59217.0,59216.0,0.0024]
[1725323619939,0.62105569,59217.0,59216.0,0.0024]
[1725323621731,0.26025569,59217.0,59216.0,0.0024]
[1725323621931,0.62105569,59217.0,59216.0,0.0024]
[1725323627249,0.52295569,59217.0,59216.0,0.0024]
[1725323627441,0.43295569,59217.0,59216.0,0.0024]
[1725323629138,0.49352501,59217.0,59216.0,0.0024]
[1725323629750,0.067553,59215.0,59214.0,0.08316001]
[1725323629948,0.1978255,59215.0,59214.0,0.09]
[1725323631049,0.1988255,59215.0,59214.0,0.092]
[1725323634850,0.1988255,59215.0,59214.0,0.159554]
[1725323635047,0.1312725,59215.0,59214.0,0.20848116]
[1725323635758,0.1312725,59215.0,59214.0,0.204754]
[1725323636149,0.0014,59215.0,59214.0,0.204754]
[1725323639952,0.0014,59215.0,59214.0,0.565554]
[1725323640461,0.0024,59215.0,59214.0,0.565554]
[1725323641146,0.0034,59215.0,59214.0,0.565554]
[1725323641552,0.0024,59215.0,59214.0,0.203754]
[1725323641754,0.0034,59215.0,59214.0,0.204754]
[1725323642167,0.0014,59215.0,59214.0,0.203754]
[1725323642460,0.0034,59215.0,59214.0,0.159554]
[1725323642662,0.0034,59215.0,59214.0,0.069554]
[1725323643657,0.0014,59215.0,59214.0,0.069554]
[1725323643861,0.0034,59215.0,59214.0,0.159554]
[1725323644051,0.132262,59215.0,59214.0,0.158554]
[1725323644254,0.132262,59215.0,59214.0,0.159554]
[1725323644255,0.133262,59215.0,59214.0,0.159554]
[1725323646472,0.13151742,59215.0,59214.0,0.159554]
[1725323646657,0.13151742,59215.0,59214.0,0.069554]
[1725323646658,0.22151742,59215.0,59214.0,0.069554]
[1725323647154,0.22151742,59215.0,59214.0,0.002]
[1725323647554,0.13151742,59215.0,59214.0,0.002]
[1725323648766,1.46857108,59215.0,59214.0,0.002]
[1725323650661,1.46857108,59215.0,59214.0,0.00333]
[1725323651170,1.33870908,59215.0,59214.0,0.00333]
[1725323653662,0.73870908,59215.0,59214.0,0.00333]
[1725323653965,0.23206908,59215.0,59214.0,0.00333]
[1725323655672,0.73870908,59215.0,59214.0,0.00333]
[1725323655876,1.33870908,59215.0,59214.0,0.00333]
[1725323657080,1.42870908,59215.0,59214.0,0.00333]
[1725323659279,1.48928474,59215.0,59214.0,0.00333]
[1725323659663,2.21088474,59215.0,59214.0,0.00333]
[1725323659971,2.28019518,59215.0,59214.0,0.00333]
[1725323663775,2.12264218,59215.0,59214.0,0.00333]
[1725323663983,0.85844918,59215.0,59214.0,0.00333]
[1725323664169,0.78913874,59215.0,59214.0,0.00333]
[1725323664366,0.78913874,59215.0,59214.0,0.09333]
[1725323665380,0.78913874,59215.0,59214.0,0.13873]
[1725323666174,0.72856308,59215.0,59214.0,0.13873]
[1725323668392,0.36776308,59215.0,59214.0,0.13873]
[1725323669990,0.00696308,59215.0,59214.0,0.13873]
[1725323670789,0.00696308,59215.0,59214.0,0.206284]
[1725323672101,0.00696308,59215.0,59214.0,0.116284]
[1725323672302,0.36776308,59215.0,59214.0,0.116284]
[1725323673696,0.36776308,59215.0,59214.0,0.206284]
[1725323673697,0.0034,59215.0,59214.0,0.206284]